bitfinex/quotes_ETHUSD_20250904
["timestamp","ask_amount","ask_price","bid_price","bid_amount"]
[1756959462226,1e-08,4414.3,4414.2,2.26541615]
[1756959462438,1e-08,4414.3,4414.2,11.64650667]
[1756959462723,1e-08,4414.3,4414.2,12.05350667]
[1756959462939,1e-08,4414.3,4414.2,18.85350667]
[1756959464752,1e-08,4414.3,4414.2,19.30090667]
[1756959469659,1e-08,4414.3,4414.2,18.85350667]
[1756959470838,0.29160001,4414.3,4414.2,18.56010667]
[1756959471165,1.20510001,4414.3,4414.2,19.35010667]
[1756959471662,1.20510001,4414.3,4414.2,12.55010667]
[1756959472650,1.20510001,4414.3,4414.2,8.75710667]
[1756959472963,1.20510001,4414.3,4414.2,8.00401615]
[1756959473176,1.20510001,4414.3,4414.2,4.12001615]
[1756959473342,1.20510001,4414.3,4414.2,8.00401615]
[1756959479069,1.20510001,4414.3,4414.2,8.00301615]
[1756959479384,1.20510001,4414.3,4414.2,1.741]
[1756959479675,1.31870001,4414.3,4414.2,5.624]
[1756959480589,1.26870001,4414.3,4414.2,5.624]
[1756959482871,1.26870001,4414.3,4414.2,5.623]
[1756959483475,1.26870001,4414.3,4414.1,0.004]
[1756959483676,3.53406484,4414.3,4414.2,3.882]
[1756959484468,2.26541615,4414.2,4414.1,3.886]
[1756959484663,3.18811615,4414.2,4414.1,3.886]
[1756959484867,10.52471615,4414.2,4414.1,3.886]
[1756959485676,8.2593,4414.2,4414.1,3.886]
[1756959487388,10.52471615,4414.2,4414.1,3.886]
[1756959487588,10.52471615,4414.2,4414.1,0.004]
[1756959492762,8.2593,4414.2,4414.1,0.004]
[1756959494295,10.52471615,4414.2,4414.1,0.004]
[1756959497399,11.31671615,4414.2,4414.1,0.004]
[1756959498888,14.31671615,4414.2,4414.1,0.004]
[1756959499302,18.19671615,4414.2,4414.1,0.004]
[1756959499885,2.26562145,4413.8,4413.7,0.004]
[1756959500208,30.65973546,4413.8,4413.7,0.004]
[1756959500406,6.05772412,4413.6,4413.5,0.004]
[1756959500706,11.04573602,4413.6,4413.3,0.004]
[1756959500907,13.42894395,4413.4,4413.3,0.004]
[1756959501118,25.43695585,4413.4,4413.3,0.004]
[1756959501312,26.35965585,4413.4,4413.3,0.004]
[1756959501897,25.73903385,4413.4,4413.3,0.004]
[1756959504709,26.35965585,4413.4,4413.3,0.004]
[1756959506750,22.47965585,4413.4,4413.3,0.004]
[1756959506910,26.35865585,4413.4,4413.3,0.004]
[1756959509523,25.05343441,4413.4,4413.3,0.004]
[1756959511047,24.74650639,4413.4,4413.3,0.004]
[1756959512043,20.86750639,4413.4,4413.3,0.004]
[1756959512242,24.74550639,4413.4,4413.3,0.004]
[1756959515366,9.8868167,4413.4,4413.3,0.3204]
[1756959515573,7.1336,4413.4,4413.3,1.2859]
[1756959516057,7.1336,4413.4,4413.3,0.7932]
[1756959516276,9.3994268,4413.4,4413.3,0.3204]
[1756959517174,7.1336,4413.4,4413.3,0.3204]
[1756959517558,7.1336,4413.4,4413.3,0.7932]
[1756959519336,7.1336,4413.4,4413.3,1.2859]
[1756959519669,7.1336,4413.4,4413.3,0.7932]
[1756959519876,9.3994268,4413.4,4413.3,0.3204]
[1756959521074,13.5782268,4413.4,4413.3,0.004]
[1756959521436,17.55333492,4413.4,4413.3,0.004]
[1756959521782,18.00573492,4413.4,4413.3,0.004]
[1756959522358,17.55333492,4413.4,4413.3,0.004]
[1756959522577,22.31533063,4413.4,4413.3,0.004]
[1756959522869,26.49313063,4413.4,4413.3,0.004]
[1756959523172,26.98003063,4413.4,4413.3,0.004]
[1756959523471,27.43243063,4413.4,4413.3,0.004]
[1756959524166,26.98003063,4413.4,4413.3,0.004]
[1756959524366,27.43243063,4413.4,4413.3,0.004]
[1756959525068,26.98003063,4413.4,4413.3,0.004]
[1756959525838,26.19133063,4413.4,4413.3,0.3204]
[1756959526065,27.43243063,4413.4,4413.3,0.004]
[1756959526563,27.43143063,4413.4,4413.3,0.004]
[1756959530953,27.43043063,4413.4,4413.3,0.004]
[1756959531158,26.97803063,4413.4,4413.3,0.004]
[1756959533486,26.49113063,4413.4,4413.3,0.004]
[1756959534487,12.88763492,4413.4,4413.3,0.004]
[1756959534687,7.62180812,4413.4,4413.3,1.2859]
[1756959534986,17.04950383,4413.4,4413.3,1.2859]
[1756959535393,19.31533063,4413.4,4413.3,1.2859]
[1756959535581,19.31533063,4413.4,4413.3,0.3204]
[1756959536193,10.02950383,4413.4,4413.3,0.7932]
[1756959536386,9.54129571,4413.4,4413.3,1.2859]
[1756959539088,11.80712251,4413.4,4413.3,0.7932]
[1756959539290,11.80712251,4413.4,4413.3,0.3204]
[1756959539697,13.41429571,4413.4,4413.3,0.7932]
[1756959540591,15.68012251,4413.4,4413.3,0.004]
[1756959540891,9.54129571,4413.4,4413.3,1.2684]
[1756959541065,0.1136,4413.4,4413.3,1.2684]
[1756959544279,0.1136,4413.4,4413.3,0.7856]
[1756959545279,0.1136,4413.4,4413.3,1.2684]
[1756959545481,0.1136,4413.4,4413.3,3.66151814]
[1756959546217,0.1146,4413.5,4413.4,2.2658268]
[1756959546402,0.1146,4413.5,4413.4,3.2231268]
[1756959546703,0.1146,4413.5,4413.4,3.5302268]
[1756959549293,0.001,4413.5,4413.4,3.5302268]
[1756959549490,0.001,4413.5,4413.4,4.51006613]
[1756959553981,0.001,4413.5,4413.4,4.64632439]
[1756959554415,0.001,4413.5,4413.4,4.62366613]
[1756959555126,0.001,4413.5,4413.4,7.53436613]
[1756959555282,0.001,4413.5,4413.4,7.0290268]
[1756959556000,0.7937,4413.5,4413.4,3.868]
[1756959557284,1.2294,4413.5,4413.4,6.1338268]
[1756959557491,0.7937,4413.5,4413.4,6.1338268]
[1756959557994,0.7937,4413.5,4413.4,3.868]
[1756959558194,1.2294,4413.5,4413.4,3.867]
[1756959561293,3.49517546,4413.5,4413.4,3.867]
[1756959561596,2.2658268,4413.4,4413.3,0.004]
[1756959561798,2.27141176,4413.4,4413.3,0.004]
[1756959561996,3.49981176,4413.4,4413.3,0.004]
[1756959562231,10.51981176,4413.4,4413.3,0.004]
[1756959562443,10.5142268,4413.4,4413.3,0.004]
[1756959563109,11.00271435,4413.4,4413.3,0.004]
[1756959563315,10.5142268,4413.4,4413.3,0.004]
[1756959563623,11.00278077,4413.4,4413.3,0.004]
[1756959565410,14.00278077,4413.4,4413.3,0.004]
[1756959566833,26.86077648,4413.4,4413.3,0.004]
[1756959567046,26.37222251,4413.4,4413.3,0.004]
[1756959567245,26.80792251,4413.4,4413.3,0.004]
[1756959569523,28.12488994,4413.4,4413.3,0.004]
[1756959571518,27.68918994,4413.4,4413.3,0.004]
[1756959571716,24.93526314,4413.4,4413.3,0.004]
[1756959572344,7.02,4413.4,4413.3,0.2893]
[1756959572648,7.1336,4413.4,4413.3,0.7375]
[1756959573417,7.1336,4413.4,4413.3,0.2893]
[1756959574748,7.422,4413.4,4413.3,0.004]
[1756959575049,10.1647268,4413.4,4413.3,0.004]
[1756959575233,10.6135268,4413.4,4413.3,0.004]
[1756959576552,10.1647268,4413.4,4413.3,0.004]
[1756959576858,9.6878268,4413.4,4413.3,0.004]
[1756959578216,10.6135268,4413.4,4413.3,0.004]
[1756959579043,11.286,4413.4,4413.3,0.004]
[1756959579244,10.9976,4413.4,4413.3,0.004]
[1756959579965,7.1336,4413.4,4413.3,0.2893]
[1756959580165,7.1336,4413.4,4413.3,0.7375]
[1756959582564,7.1336,4413.4,4413.3,0.2893]
[1756959583791,7.8989,4413.4,4413.3,0.004]
[1756959584152,7.422,4413.4,4413.3,0.004]
[1756959584534,7.1336,4413.4,4413.3,0.004]
[1756959586040,7.422,4413.4,4413.3,0.004]
[1756959586250,7.1336,4413.4,4413.3,0.004]
[1756959591372,0.09182889,4413.5,4413.3,4.99288114]
[1756959591541,0.001,4413.5,4413.4,7.0433268]
[1756959591937,0.001,4413.5,4413.4,7.3286268]
[1756959592143,0.001,4413.5,4413.4,8.48541972]
[1756959596182,0.001,4413.5,4413.4,9.27741972]
[1756959599786,0.001,4413.5,4413.4,16.07741972]
[1756959601367,0.001,4413.5,4413.4,16.19101972]
[1756959603102,0.001,4413.5,4413.4,15.72271972]
[1756959603399,0.001,4413.5,4413.4,3.858]
[1756959603400,1.2008,4413.5,4413.4,3.858]
[1756959603561,1.3144,4413.5,4413.4,3.858]
[1756959605791,3.58017546,4413.5,4413.4,3.858]
[1756959606092,2.2658268,4413.4,4413.3,0.004]
[1756959606307,2.27141176,4413.4,4413.3,0.004]
[1756959606589,3.4656268,4413.4,4413.3,0.004]
[1756959606790,1.1998,4413.4,4413.3,0.004]
[1756959607298,3.4656268,4413.4,4413.3,0.004]
[1756959609384,3.47121176,4413.4,4413.3,0.004]
[1756959609678,6.95916173,4413.4,4413.3,0.004]
[1756959609876,6.95357677,4413.4,4413.3,0.004]
[1756959615914,11.60257677,4413.4,4413.3,0.004]
[1756959616817,18.62257677,4413.4,4413.3,0.004]
[1756959620723,18.62257677,4413.4,4412.9,0.004]
[1756959620724,3.05803217,4413.0,4412.9,0.004]
[1756959621013,27.78929531,4413.0,4412.9,0.004]
[1756959621215,29.78942215,4413.0,4412.9,0.004]
[1756959621401,30.18707561,4413.0,4412.9,0.004]
[1756959623790,30.18707561,4413.0,4412.9,1e-08]
[1756959623996,0.792,4412.8,4412.6,0.004]
[1756959624202,11.97541675,4412.7,4412.6,0.004]
[1756959624519,13.28323179,4412.7,4412.6,0.004]
[1756959625517,2.26628895,4412.5,4412.3,1e-08]
[1756959625717,3.05859715,4411.9,4411.8,0.029]
[1756959626019,26.82986029,4411.9,4411.8,0.029]
[1756959626202,27.73066029,4411.9,4411.8,0.029]
[1756959626598,27.84381541,4411.9,4411.8,0.029]
[1756959629424,30.84381541,4411.9,4411.8,0.029]
[1756959631547,29.53326027,4411.9,4411.8,0.029]
[1756959632501,30.64087114,4411.9,4411.8,0.029]
[1756959633430,3.05880267,4411.5,4411.4,0.004]
[1756959633723,35.88920363,4411.5,4411.4,0.004]
[1756959633924,37.5562736,4411.5,4411.4,0.004]
[1756959634131,37.64716379,4411.5,4411.4,0.004]
[1756959634533,37.96080935,4411.5,4411.4,0.004]
[1756959636707,37.64716379,4411.5,4411.4,0.004]
[1756959636908,28.21305579,4411.5,4411.4,0.004]
[1756959637110,13.31329286,4411.5,4411.4,1.2306]
[1756959637333,16.31329286,4411.5,4411.4,0.3188]
[1756959637701,16.19969286,4411.5,4411.4,0.3188]
[1756959638129,16.68730566,4411.5,4411.4,0.3188]
[1756959638837,16.68730566,4411.5,4411.4,0.768]
[1756959640106,26.12141366,4411.5,4411.4,0.768]
[1756959641743,19.99961099,4411.5,4411.4,0.768]
[1756959641941,19.99961099,4411.5,4411.4,1.2306]
[1756959641942,13.93289019,4411.5,4411.4,1.2306]
[1756959642241,16.19969286,4411.5,4411.4,1.2306]
[1756959642446,7.07789019,4411.5,4411.4,1.35406]
[1756959642616,6.987,4411.5,4411.4,1.35406]
[1756959644120,6.987,4411.5,4411.4,1.2306]
[1756959645666,6.987,4412.5,4411.4,1.2306]
[1756959645867,3.854,4412.4,4411.7,2.26664923]
[1756959646152,3.854,4412.4,4412.3,0.3148]
[1756959646322,10.841,4412.4,4412.3,1.2266]
[1756959646639,11.32929309,4412.4,4412.3,1.2266]
[1756959647034,13.5956334,4412.4,4412.3,1.2266]
[1756959647235,13.5956334,4412.4,4412.3,0.764]
[1756959647650,13.7092334,4412.4,4412.3,0.764]
[1756959649321,11.44289309,4412.4,4412.3,0.764]
[1756959649521,13.7092334,4412.4,4412.3,0.764]
[1756959650416,9.8552334,4412.4,4412.3,0.764]
[1756959650636,7.1006,4412.4,4412.3,0.764]
[1756959650817,9.36694031,4412.4,4412.3,0.764]
[1756959652373,9.36694031,4412.4,4411.6,0.4492]
[1756959652374,16.534708,4412.4,4411.6,0.4492]
[1756959652587,0.1136,4412.0,4411.7,0.4492]
[1756959652747,2.26647152,4412.2,4411.9,0.3148]
[1756959652946,6.11940451,4412.3,4412.0,0.4492]
[1756959653251,6.11940451,4412.3,4412.2,0.3148]
[1756959653451,6.23300451,4412.3,4412.2,0.764]
[1756959653769,6.23300451,4412.3,4412.2,0.3148]
[1756959653966,6.69560451,4412.3,4412.2,0.3148]
[1756959655698,6.69560451,4412.3,4411.5,2.26680029]
[1756959655845,0.00558496,4412.2,4411.5,0.45416934]
[1756959656048,0.1136,4411.6,4411.4,0.4532]
[1756959656357,0.1136,4411.6,4411.5,0.764]
[1756959656545,2.38035129,4411.6,4411.4,0.004]
[1756959656744,15.55278508,4411.8,4411.5,1.2266]
[1756959656745,0.68150609,4411.8,4411.5,1.2266]
[1756959656968,0.1136,4411.6,4411.5,0.6649458]
[1756959657283,0.1136,4411.6,4411.5,0.3148]
[1756959657706,0.1136,4411.6,4411.5,1.2266]
[1756959659286,0.1136,4411.6,4411.5,3.49340267]
[1756959661078,0.1136,4411.6,4411.5,1.2266]
[1756959661704,0.1136,4411.6,4411.5,3.49340267]
[1756959662002,0.1136,4411.6,4411.5,1.2266]
[1756959663183,0.1136,4411.6,4411.5,3.49340267]
[1756959663780,0.1136,4411.6,4411.5,4.22874294]
[1756959666002,0.1136,4411.6,4411.5,1.96194027]
[1756959666237,0.1136,4411.6,4411.5,3.76614294]
[1756959666437,0.1136,4411.6,4411.5,1.49934027]
[1756959667144,0.1136,4411.6,4411.5,0.3148]
[1756959667906,0.1136,4411.6,4411.4,0.004]
[1756959668142,0.8042,4411.5,4411.4,3.854]
[1756959668350,1.2436,4411.5,4411.4,0.004]
[1756959669543,0.8042,4411.5,4411.4,0.004]
[1756959669839,0.3115,4411.5,4411.4,0.004]
[1756959670236,3.07100267,4411.5,4411.4,0.004]
[1756959670935,0.8042,4411.5,4411.4,0.004]
[1756959671802,3.51040267,4411.5,4411.4,0.004]
[1756959672734,4.00548897,4411.5,4411.4,0.004]
[1756959672935,8.47913287,4411.5,4411.4,0.004]
[1756959673137,8.47354791,4411.5,4411.4,0.004]
[1756959675561,1.28474524,4411.5,4411.4,0.3176]
[1756959675726,0.1136,4411.5,4411.4,0.7742]
[1756959677123,0.1136,4411.5,4411.4,3.49355405]
[1756959677324,0.1136,4411.5,4411.4,4.07000964]
[1756959678135,0.1136,4411.5,4411.4,1.35065559]
[1756959678316,0.1136,4411.5,4411.4,0.7742]
[1756959678517,0.1136,4411.5,4411.4,3.04105405]
[1756959678725,0.1136,4411.5,4411.4,3.49355405]
[1756959680069,0.1136,4411.5,4411.4,2.58445405]
[1756959680236,0.1136,4411.5,4411.4,3.04105405]
[1756959681738,0.1136,4411.5,4411.4,3.7646231]
[1756959683567,0.1136,4411.5,4411.4,3.3121231]
[1756959686367,0.1136,4411.5,4411.4,2.8555231]
[1756959687169,0.4251,4411.5,4411.4,0.004]
[1756959687369,0.9178,4411.5,4411.4,3.851]
[1756959687571,1.3572,4411.5,4411.4,0.004]
[1756959687867,0.1136,4411.5,4411.4,6.43045405]
[1756959688371,0.9178,4411.5,4411.4,0.004]
[1756959688575,1.3572,4411.5,4411.4,3.85]
[1756959689677,0.9178,4411.5,4411.4,3.85]
[1756959690678,1.363,4411.5,4411.4,3.85]
[1756959693048,1.363,4411.5,4411.4,0.004]
[1756959693488,7.4121,4411.5,4411.4,0.004]
[1756959696178,8.3411,4411.5,4411.4,0.004]
[1756959697284,3.62090267,4411.5,4411.4,0.004]
[1756959697452,7.11535486,4411.5,4411.4,0.004]
[1756959697653,7.20065534,4411.5,4411.4,0.004]
[1756959698054,7.99265534,4411.5,4411.4,0.004]
[1756959702166,11.83665534,4411.5,4411.4,0.004]
[1756959711183,18.82365534,4411.5,4411.4,0.004]
[1756959711709,16.67655534,4411.5,4411.4,0.291]
[1756959712010,16.67655534,4411.5,4411.4,0.004]
[1756959712011,16.79015534,4411.5,4411.4,0.004]
[1756959717222,16.79015534,4411.5,4411.4,0.291]
[1756959717425,16.79015534,4411.5,4411.4,0.7596]
[1756959718002,16.79015534,4411.5,4411.4,0.291]
[1756959718202,17.57355534,4411.5,4411.4,0.004]
[1756959719295,17.08975534,4411.5,4411.4,0.004]
[1756959719828,18.81075534,4411.5,4411.4,0.004]
[1756959720129,13.66242763,4411.4,4411.3,0.004]
[1756959720350,15.89429486,4411.4,4411.3,1e-08]
[1756959720633,0.792,4410.7,4410.6,1e-08]
[1756959720927,21.25882149,4410.7,4410.6,1e-08]
[1756959721244,23.08148089,4410.7,4410.6,1e-08]
[1756959721916,6.70710958,4410.6,4410.5,1e-08]
[1756959722095,8.93897681,4410.6,4410.5,1e-08]
[1756959722298,10.11937681,4410.6,4410.5,1e-08]
[1756959724137,3.05941944,4410.3,4410.2,1e-08]
[1756959724345,21.90687147,4410.3,4410.2,1e-08]
[1756959724519,23.08168651,4410.3,4410.2,1e-08]
[1756959725818,6.05988225,4409.4,4409.3,0.004]
[1756959726015,21.14030496,4409.4,4409.3,0.004]
[1756959726235,21.25390496,4409.4,4409.3,0.004]
[1756959727235,21.36652486,4409.4,4409.3,0.004]
[1756959729347,20.87765763,4409.4,4409.3,0.004]
[1756959730833,22.54549695,4409.4,4409.3,0.004]
[1756959731046,22.87258835,4409.4,4409.3,0.004]
[1756959733266,7.10063287,4409.4,4409.3,0.004]
[1756959733430,21.36509695,4409.4,4409.3,0.004]
[1756959733831,21.66239695,4409.4,4409.3,0.004]
[1756959734755,9.43597365,4409.4,4409.3,0.2929]
[1756959734956,11.12810076,4409.4,4409.3,0.004]
[1756959735161,11.58130076,4409.4,4409.3,0.004]
[1756959735355,11.69490076,4409.4,4409.3,0.004]
[1756959735769,11.24170076,4409.4,4409.3,0.004]
[1756959737434,18.22470076,4409.4,4409.3,0.004]
[1756959739184,17.92740076,4409.4,4409.3,0.004]
[1756959740286,18.67790076,4409.4,4409.3,0.004]
[1756959740474,19.10780076,4409.4,4409.3,0.004]
[1756959740673,19.42883785,4409.4,4409.3,0.004]
[1756959741648,19.10174645,4409.4,4409.3,0.004]
[1756959743452,19.42883785,4409.4,4409.3,0.004]
[1756959744080,18.99893785,4409.4,4409.3,0.004]
[1756959744987,19.42883785,4409.4,4409.3,0.004]
[1756959746260,18.24843785,4409.4,4409.3,0.004]
[1756959746756,6.05998512,4409.2,4408.9,0.004]
[1756959746961,3.0,4409.0,4408.9,0.4326]
[1756959747161,5.75601699,4409.0,4408.9,0.4326]
[1756959747362,10.09161699,4409.0,4408.9,0.7215]
[1756959747562,10.20521699,4409.0,4408.9,0.7215]
[1756959749517,10.20521699,4409.0,4408.9,0.2929]
[1756959751903,10.20521699,4409.0,4408.9,0.7445]
[1756959752712,16.89531699,4409.0,4408.9,0.7445]
[1756959753823,16.89531699,4409.0,4408.9,0.2929]
[1756959755520,26.65365096,4409.0,4408.9,0.004]
[1756959756303,27.91804236,4409.0,4408.9,0.004]
[1756959756804,27.59095096,4409.0,4408.9,0.004]
[1756959757133,26.65365096,4409.0,4408.9,0.004]
[1756959758605,27.10855096,4409.0,4408.9,0.004]
[1756959759222,27.43564236,4409.0,4408.9,0.004]
[1756959759402,27.91804236,4409.0,4408.9,0.004]
[1756959762046,28.25514236,4409.0,4408.9,0.004]
[1756959762206,29.03107945,4409.0,4408.9,0.004]
[1756959763120,9.74623944,4408.9,4408.8,0.029]
[1756959763432,10.71656843,4408.9,4408.8,0.029]
[1756959763624,11.48516843,4408.9,4408.8,0.029]
[1756959763828,11.81225983,4408.9,4408.8,0.029]
[1756959767237,10.56125983,4408.9,4408.8,0.029]
[1756959767433,10.87495983,4408.9,4408.8,0.029]
[1756959767604,11.32985983,4408.9,4408.8,0.029]
[1756959767806,11.81225983,4408.9,4408.8,0.029]
[1756959768729,12.13329692,4408.9,4408.8,0.029]
[1756959771257,11.19599692,4408.9,4408.8,0.029]
[1756959771548,13.39176843,4408.9,4408.8,0.3364]
[1756959771774,15.13576843,4408.9,4408.8,0.3364]
[1756959772834,15.13576843,4408.9,4408.8,0.029]
[1756959772835,15.77655983,4408.9,4408.8,0.029]
[1756959773041,16.25895983,4408.9,4408.8,0.029]
[1756959773543,15.46285983,4408.9,4408.8,0.029]
[1756959774221,16.09759692,4408.9,4408.8,0.029]
[1756959774416,16.55249692,4408.9,4408.8,0.029]
[1756959774651,17.82689692,4408.9,4408.8,0.029]
[1756959777156,20.82689692,4408.9,4408.8,0.029]
[1756959777736,30.27153089,4408.9,4408.8,0.029]
[1756959778055,20.82689692,4408.9,4408.8,0.029]
[1756959779454,3.792,4408.5,4408.4,0.004]
[1756959779642,24.21666296,4408.5,4408.4,0.004]
[1756959779845,25.58126296,4408.5,4408.4,0.004]
[1756959780132,28.26764828,4408.5,4408.4,0.004]
[1756959780332,27.01664828,4408.5,4408.4,0.004]
[1756959780864,27.01664828,4408.5,4408.4,0.3175]
[1756959781229,23.18164828,4408.5,4408.4,0.3175]
[1756959781431,27.01564828,4408.5,4408.4,0.3175]
[1756959781633,27.30234828,4408.5,4408.4,0.004]
[1756959781929,27.01564828,4408.5,4408.4,0.004]
[1756959782851,13.73701431,4408.5,4408.4,0.3175]
[1756959783062,26.69077114,4408.5,4408.4,0.3175]
[1756959783446,26.69077114,4408.5,4408.4,0.004]
[1756959783773,26.97747114,4408.5,4408.4,0.004]
[1756959783982,27.73736254,4408.5,4408.4,0.004]
[1756959784311,28.19686254,4408.5,4408.4,0.004]
[1756959784570,37.64149651,4408.5,4408.4,0.004]
[1756959784771,37.9625336,4408.5,4408.4,0.004]
[1756959786766,37.5297336,4408.5,4408.4,0.004]
[1756959787080,37.9625336,4408.5,4408.4,0.004]
[1756959790381,37.9625336,4408.5,4408.0,0.004]
[1756959790382,6.6491,4408.3,4408.0,0.004]
[1756959790594,12.61878504,4408.1,4408.0,0.004]
[1756959790783,28.62172829,4408.1,4408.0,0.004]
[1756959791081,29.93207767,4408.1,4408.0,0.004]
[1756959792260,20.0279437,4408.1,4408.0,0.004]
[1756959792461,29.03977767,4408.1,4408.0,0.004]
[1756959792960,28.75307767,4408.1,4408.0,0.004]
[1756959793286,30.25311476,4408.1,4408.0,0.004]
[1756959793965,29.07411476,4408.1,4408.0,0.3175]
[1756959795092,29.07411476,4408.1,4408.0,0.004]
[1756959796910,29.82031476,4408.1,4408.0,0.004]
[1756959797068,30.25311476,4408.1,4408.0,0.004]
[1756959800701,5.26860254,4408.0,4407.9,0.004]
[1756959800903,7.19887428,4408.0,4407.9,0.004]
[1756959801079,8.37787428,4408.0,4407.9,0.004]
[1756959801280,0.792,4407.8,4406.8,0.025]
[1756959801579,5.3827688,4406.9,4406.8,0.025]
[1756959801793,19.17771205,4406.9,4406.8,0.025]
[1756959802012,28.98377451,4406.9,4406.8,0.025]
[1756959802226,30.16277451,4406.9,4406.8,0.025]
[1756959804448,30.16277451,4406.9,4406.8,1e-08]
[1756959804636,20.71814054,4406.9,4406.8,1e-08]
[1756959807642,0.792,4406.5,4405.8,0.025]
[1756959807844,12.55823397,4405.9,4405.8,0.025]
[1756959808145,20.4039178,4405.9,4405.8,0.025]
[1756959808439,20.4039178,4405.9,4405.8,1.2902]
[1756959810336,20.4039178,4405.9,4405.8,0.8022]
[1756959810520,20.4039178,4405.9,4405.8,0.3385]
[1756959812117,27.05301779,4405.9,4405.8,0.3385]
[1756959813349,23.22201779,4405.9,4405.8,0.3385]
[1756959813548,27.05301779,4405.9,4405.8,0.3385]
[1756959813749,20.6953178,4405.9,4405.8,0.025]
[1756959814047,20.4039178,4405.9,4405.8,0.025]
[1756959815424,23.57418333,4405.9,4405.8,0.025]
[1756959816843,23.24709193,4405.9,4405.8,0.025]
[1756959817516,19.39958691,4405.9,4405.8,0.3284]
[1756959817834,23.02214982,4405.9,4405.8,0.3284]
[1756959818341,23.02214982,4405.9,4405.8,0.025]
[1756959820353,23.02214982,4405.9,4405.8,0.3284]
[1756959820531,19.19214982,4405.9,4405.8,0.3284]
[1756959820736,23.02214982,4405.9,4405.8,0.3284]
[1756959821154,7.61642087,4405.9,4405.8,0.3284]
[1756959821354,11.44642087,4405.9,4405.8,0.3284]
[1756959821564,10.95828383,4405.9,4405.8,0.3284]
[1756959822561,10.95828383,4405.9,4405.8,0.3324]
[1756959822974,0.1136,4405.9,4405.8,1.2469]
[1756959823135,0.6016,4406.0,4405.9,2.26968383]
[1756959823329,3.83,4406.2,4406.0,2.26958945]
[1756959823562,3.9436,4406.2,4406.1,3.4036808]
[1756959824158,3.9436,4406.2,4406.1,1.1341]
[1756959824364,3.9436,4406.2,4406.1,3.98639557]
[1756959825630,0.1136,4406.2,4406.1,3.98639557]
[1756959826229,0.1136,4406.2,4406.1,1.71491385]
[1756959826533,0.1136,4406.2,4406.1,3.40177988]
[1756959827652,3.9426,4406.5,4406.3,2.26944319]
[1756959827858,3.829,4406.4,4406.3,2.26944319]
[1756959828346,3.829,4406.4,4406.3,3.40354319]
[1756959828545,3.829,4406.4,4406.3,3.97085929]
[1756959830236,3.829,4406.4,4406.3,1.7014161]
[1756959831064,3.829,4406.4,4406.3,3.97089389]
[1756959831266,3.829,4406.4,4406.3,0.8707161]
[1756959831571,3.829,4406.4,4406.3,0.3034]
[1756959831954,3.829,4406.4,4406.3,0.7491]
[1756959833948,3.829,4406.4,4406.3,0.3034]
[1756959834149,2.26952929,4406.2,4405.8,0.029]
[1756959834439,0.1136,4405.9,4405.8,0.029]
[1756959834639,2.67468383,4405.9,4405.8,0.029]
[1756959835265,3.16198383,4405.9,4405.8,0.029]
[1756959835569,3.62528383,4405.9,4405.8,0.029]
[1756959837542,7.45228383,4405.9,4405.8,0.029]
[1756959837937,17.10138382,4405.9,4405.8,0.029]
[1756959838142,17.74951231,4405.9,4405.8,0.029]
[1756959838654,17.42847522,4405.9,4405.8,0.029]
[1756959839964,6.64909999,4405.9,4405.8,0.7602]
[1756959840175,10.58969999,4405.9,4405.8,1.44819944]
[1756959840470,10.58969999,4405.9,4405.8,1.1452]
[1756959841171,10.58969999,4405.9,4405.8,0.7602]
[1756959844383,10.89959999,4405.9,4405.8,0.029]
[1756959844556,11.83509999,4405.9,4405.8,0.029]
[1756959844763,10.89959999,4405.9,4405.8,0.029]
[1756959845081,10.58969999,4405.9,4405.8,0.029]
[1756959845281,12.85938382,4405.9,4405.8,0.029]
[1756959845591,10.58969999,4405.9,4405.8,0.029]
[1756959845752,13.16928382,4405.9,4405.8,0.029]
[1756959846385,10.89959999,4405.9,4405.8,0.029]
[1756959846765,11.83509999,4405.9,4405.8,0.029]
[1756959849387,10.58969999,4405.9,4405.8,0.335]
[1756959849551,10.58969999,4405.9,4405.8,0.029]
[1756959850354,6.64909999,4405.9,4405.8,0.335]
[1756959850550,10.58869999,4405.9,4405.8,0.335]
[1756959852588,10.58869999,4405.9,4405.8,2.60473534]
[1756959852978,10.58869999,4405.9,4405.8,0.335]
[1756959853687,6.76269999,4405.9,4405.8,2.90799373]
[1756959853858,0.001,4406.2,4405.8,1.45105839]
[1756959854064,0.001,4406.2,4406.1,2.2695808]
[1756959854368,0.001,4406.2,4405.9,0.1136]
[1756959854369,3.826,4406.2,4405.9,0.1136]
[1756959854558,0.3099,4405.9,4405.8,0.029]
[1756959854755,6.40458383,4405.9,4405.8,0.029]
[1756959855092,7.34008383,4405.9,4405.8,0.029]
[1756959856492,7.82960884,4405.9,4405.8,0.029]
[1756959861402,0.48952501,4405.9,4405.8,0.029]
[1756959861625,3.825,4405.9,4405.8,0.335]
[1756959864287,0.68242073,4406.0,4405.8,0.63826813]
[1756959864604,0.001,4406.1,4405.9,2.65468383]
[1756959864795,0.001,4406.1,4406.0,2.26963231]
[1756959864999,0.001,4406.1,4406.0,3.38843231]
[1756959868024,0.001,4406.1,4406.0,3.00343231]
[1756959869310,0.001,4406.1,4406.0,2.57563231]
[1756959869477,0.001,4406.1,4406.0,3.00343231]
[1756959869676,0.001,4406.1,4406.0,3.54500392]
[1756959870179,0.3062,4406.1,4406.0,0.54157161]
[1756959870378,1.3041,4406.1,4405.8,0.029]
[1756959870604,5.26968383,4405.9,4405.8,0.029]
[1756959870807,5.75910999,4405.9,4405.8,0.029]